Cogmind - Beta 13 @@@ ROGUE MODE // 2024.04.27 @ 20:18:30 Player: opaguck Result: Self-destructed Performance ------------- Evolutions (1) 500 Regions Visited (4) 800 Robots Destroyed (19) 95 Value Destroyed (398) 398 Prototype IDs (1) 20 Alien Tech Used (0) 0 Bonus (0) 0 TOTAL SCORE: 1813 Bonus ------- None Cogmind --------- Core Integrity 362/400 Matter 225/300 Energy 250/250 System Corruption 0% Temperature Cool (0) Movement Walking (120) Location -9/Storage Parts ------- > --- POWER (1) -------- Ion Engine > --- PROPULSION (2) --- Aluminum Leg Aluminum Leg > --- UTILITY (4) ------ Visual Processing Unit Sensor Array Signal Interpreter > --- WEAPON (2) ------- (None) > --- INVENTORY (5) ---- Aluminum Leg Propulsion Shielding Peak State ------------ > --- POWER ------------ Light Nuclear Core > --- PROPULSION ------- Aluminum Leg Aluminum Leg > --- UTILITY ---------- Experimental Sensor Array Improved Terrain Scanner > --- WEAPON ----------- Light Assault Rifle Light Assault Rifle > --- INVENTORY -------- Ion Engine Aluminum Leg Aluminum Leg Medium Laser [Rating: 19] Favorites ----------- Power Light Ion Engine Engine Light Ion Engine Power Core Light Nuclear Core Propulsion Aluminum Leg Leg Aluminum Leg Utility Seismic Detector Device Seismic Detector Processor Signal Interpreter Protection Propulsion Shielding Weapon Light Assault Rifle Ballistic Gun Light Assault Rifle Launcher Grenade Launcher Special Weapon Mining Laser Build | -11 -10 -10 -9 -9 ------- Run | Yrd Mat Min Mat Sto Slots Evolved 2 | . . . 2 . Power . | . . . . . Propulsion . | . . . . . Utility 2 | . . . 2 . Weapon . | . . . . . Parts Attached 24 | 5 1 9 8 1 Power 4 | 1 . 2 1 . Engine 3 | 1 . 1 1 . Core 1 | . . 1 . . Reactor . | . . . . . Propulsion 6 | 2 . 3 1 . Treads . | . . . . . Leg 6 | 2 . 3 1 . Wheel . | . . . . . Hover . | . . . . . Flight . | . . . . . Utility 8 | 1 . 2 4 1 Device 5 | 1 . 2 1 1 Storage . | . . . . . Processor 2 | . . . 2 . Hackware . | . . . . . Protection 1 | . . . 1 . Artifact . | . . . . . Weapon 6 | 1 1 2 2 . Energy Gun . | . . . . . Energy Cannon . | . . . . . Ballistic Gun 3 | 1 . 2 . . Ballistic Cannon . | . . . . . Launcher 1 | . 1 . . . Special Weapon 2 | . . . 2 . Impact Weapon . | . . . . . Slashing Weapon . | . . . . . Piercing Weapon . | . . . . . Special Melee Weapon . | . . . . . Unidentified Prototypes 1 | . . 1 . . Parts Lost 9 | . . 6 . 3 Power 2 | . . 2 . . Propulsion . | . . . . . Utility 4 | . . 3 . 1 Weapon 3 | . . 1 . 2 Highest Loss Streak 3 | . . 2 . 3 To Critical Strikes . | . . . . . Average Slot Usage (%) 83 | . 79 84 76 94 Engine 9 | . 14 8 9 11 Core 3 | . . 4 . . Leg 26 | . 28 28 22 22 Device 13 | . 14 15 4 18 Processor 4 | . . . 9 22 Protection 1 | . . . 10 . Ballistic Gun 11 | . 14 16 1 . Launcher 7 | . 8 10 . . Special Weapon 5 | . . . 19 19 Naked Turns . | . . . . . Heaviest Build 14 | 5 8 10 9 14 Greatest Support 20 | 20 20 20 20 20 Greatest Overweight (x) . | . . . . . Average Overweight (x) . | . . . . . Largest Inventory Capacity 5 | 5 5 5 5 5 Average Capacity 5 | 5 5 5 5 5 Most Carried 5 | 3 4 5 5 5 Average Carried 3 | 2 3 3 4 2 Final Capacity 5 | 5 5 5 5 5 Final Carried 5 | 3 3 5 4 2 Class Distribution -------------------- 67% | Mutant 16% | Scavenger-Skirmisher 16% | Scavenger-Mutant Dominant Class ---------------- Mutant | -10/Materials Mutant | -10/Mines Mutant | -9/Materials Scavenger-Skirmisher | -9/Storage Resources | -11 -10 -10 -9 -9 ----------- Run | Yrd Mat Min Mat Sto Matter Collected 443 | 275 . 168 . . Remotely . | . . . . . Salvage Created 465 | 140 . 325 . . Parts 44 | 10 . 31 3 . Haulers Intercepted . | . . . . . Recyclers Shooed 1 | 1 . . . . Parts Field Recycled . | . . . . . Retrieved Matter . | . . . . . Parts Self-Destructed . | . . . . . Prevented . | . . . . . Kills | -11 -10 -10 -9 -9 ------- Run | Yrd Mat Min Mat Sto Combat Hostiles Destroyed 13 | . . 12 . 1 Guns 3 | . . 3 . . Cannons 1 | . . . . 1 AOE 9 | . . 9 . . Classes Destroyed 6 | 2 . 2 1 1 Tunneler 4 | 2 . 2 . . Recycler 1 | 1 . . . . Watcher 1 | . . . 1 . Swarmer 6 | . . 6 . . Grunt 6 | . . 6 . . Sentry 1 | . . . . 1 Best Kill Streak 4 | 2 . 4 1 1 Combat Bots Only 3 | . . 3 . 1 Max Kills in Single Turn 3 | 1 . 3 1 1 Gunslinging . | . . . . . Exploded 2 | . . 2 . . Melee . | . . . . . Uniques/NPCs Destroyed . | . . . . . Combat | -11 -10 -10 -9 -9 -------- Run | Yrd Mat Min Mat Sto Hostile Shots Fired 123 | . . 83 . 40 Missed 43 | . . 29 . 14 Damage Taken 1062 | . . 679 . 383 Core 162 | . . 124 . 38 Absorbed by Shields . | . . . . . Core Remaining (%) 75 | 100 . 50 . . Volleys Fired 56 | 25 3 21 3 4 Largest 2 | 1 1 2 2 2 Hottest 200 | 20 20 50 200 200 Shots Fired 77 | 25 3 35 6 8 Gun 56 | 25 3 28 . . Cannon . | . . . . . Launcher 7 | . . 7 . . Special 14 | . . . 6 8 Kinetic 56 | 25 3 28 . . Thermal 14 | . . . 6 8 Explosive 7 | . . 7 . . Electromagnetic . | . . . . . Robot Hit Streak 8 | 8 1 4 1 3 Robot Miss Streak 5 | 2 2 5 2 3 Penetration Max . | . . . . . Secondary Targets . | . . . . . Shots Hit Robots 40 | 19 1 13 2 5 Core Hits 29 | 6 . 21 1 1 Critical Kills . | . . . . . Critical Parts Destroyed 1 | 1 . . . . Critical Strikes 1 | 1 . . . . Destroy 1 | 1 . . . . Melee Attacks . | . . . . . Impact . | . . . . . Slashing . | . . . . . Piercing . | . . . . . Sneak Attacks . | . . . . . Combat Hostiles . | . . . . . Follow-up Attacks . | . . . . . Damage Inflicted 955 | 161 10 592 48 144 Guns 275 | 161 10 104 . . Cannons . | . . . . . Explosions 460 | . . 460 . . Melee . | . . . . . Ramming 28 | . . 28 . . Kinetic 275 | 161 10 104 . . Thermal 192 | . . . 48 144 Explosive 460 | . . 460 . . Electromagnetic . | . . . . . Impact . | . . . . . Slashing . | . . . . . Piercing . | . . . . . Highest Corruption . | . . . . . Average Corruption . | . . . . . Corruption Purged . | . . . . . Corruption Blocked . | . . . . . Overload Shots . | . . . . . Overflow Damage 37 | . . 37 . . Projectiles . | . . . . . Explosions 37 | . . 37 . . Melee . | . . . . . Knockbacks . | . . . . . Impact . | . . . . . Kinetic . | . . . . . Secondary . | . . . . . Self-Inflicted Damage 21 | . . 21 . . Shots 1 | . . 1 . . Rammed . | . . . . . Targets Rammed 8 | . . 8 . . Kicked 8 | . . 8 . . Crushed . | . . . . . Highest Temperature 227 | . . 59 35 227 Average Temperature 56 | . . 17 19 120 Received Heat Transfer 555 | . . 363 . 192 Effects 1 | . . . . 1 Energy Bleed 1 | . . . . 1 Siege Activations . | . . . . . Robots Corrupted . | . . . . . Combat Hostiles . | . . . . . Parts Fried . | . . . . . Impact Corruptions . | . . . . . Robots Melted . | . . . . . Combat Hostiles . | . . . . . Parts Melted . | . . . . . Heat Transferred 400 | . . . 100 300 Parts Sabotaged . | . . . . . Parts Stolen . | . . . . . Parts Stripped . | . . . . . Power Chain Reactions . | . . . . . Alert | -11 -10 -10 -9 -9 ------- Run | Yrd Mat Min Mat Sto Peak Influence 317 | 15 24 317 103 42 Initial 63 | . 9 9 63 42 Average 74 | 4 12 106 76 18 Maximum Alert Level 1 | . . 1 . . Low Security (%) 85 | 100 100 74 100 100 Level 1 14 | . . 25 . . Level 2 . | . . . . . Level 3 . | . . . . . Level 4 . | . . . . . Level 5 . | . . . . . High Security . | . . . . . Max Security . | . . . . . Squads Dispatched 3 | . 2 . . 1 Investigation 1 | . 1 . . . Extermination . | . . . . . Reinforcement 2 | . 1 . . 1 Assault . | . . . . . Garrison . | . . . . . Intercept . | . . . . . Searches Triggered . | . . . . . Construction Impeded . | . . . . . Haulers Reinforced . | . . . . . Active Scanning Responses . | . . . . . Cargo Convoy Interrupts . | . . . . . Stealth | -11 -10 -10 -9 -9 --------- Run | Yrd Mat Min Mat Sto Distress Signals 1 | . . 1 . . Communications Jammed . | . . . . . Distress Signals . | . . . . . Times Spotted 36 | . 4 18 3 11 Peak Tracking Total 9 | . 4 3 1 9 Tactical Retreats 2 | . . 2 . . Traps | -11 -10 -10 -9 -9 ------- Run | Yrd Mat Min Mat Sto Traps Triggered 1 | . 1 . . . Indirectly . | . . . . . Trap Hack Attempts . | . . . . . Triggered . | . . . . . Disarmed . | . . . . . Reprogrammed . | . . . . . Reused . | . . . . . Traps Extracted . | . . . . . Installed . | . . . . . Triggered . | . . . . . Machines | -11 -10 -10 -9 -9 ---------- Run | Yrd Mat Min Mat Sto Machines Disabled . | . . . . . Max in Single Turn . | . . . . . Machines Repaired . | . . . . . Machines Dismantled . | . . . . . Machines Sabotaged . | . . . . . Overloaded Fab Kills . | . . . . . Hacking | -11 -10 -10 -9 -9 --------- Run | Yrd Mat Min Mat Sto Machines Accessed 1 | . . . . 1 Terminals 1 | . . . . 1 Fabricators . | . . . . . Repair Stations . | . . . . . Recycling Units . | . . . . . Scanalyzers . | . . . . . Garrison Access . | . . . . . Total Hacks 1 | . . . . 1 Successful 1 | . . . . 1 Failed . | . . . . . Catastrophic . | . . . . . Database Lockouts . | . . . . . Manual . | . . . . . Terminals 1 | . . . . 1 Fabricators . | . . . . . Repair Stations . | . . . . . Recycling Units . | . . . . . Scanalyzers . | . . . . . Garrison Access . | . . . . . Terminal Hacks 1 | . . . . 1 Open Door 1 | . . . . 1 Fabricator Hacks . | . . . . . Repair Station Hacks . | . . . . . Recycling Unit Hacks . | . . . . . Scanalyzer . | . . . . . Garrison Access Hacks . | . . . . . Unauthorized Hacks . | . . . . . Terminals . | . . . . . Fabricators . | . . . . . Repair Stations . | . . . . . Recycling Units . | . . . . . Scanalyzers . | . . . . . Garrison Access . | . . . . . Data Cores Recovered . | . . . . . Used . | . . . . . Hacking Detections . | . . . . . Full Trace Events . | . . . . . Feedback Events . | . . . . . Feedback Blocked . | . . . . . Robot Schematics Acquired . | . . . . . Robots Built . | . . . . . Authchips . | . . . . . Time . | . . . . . Total Robot Build Rating . | . . . . . Part Schematics Acquired . | . . . . . Parts Built . | . . . . . Authchips . | . . . . . Time . | . . . . . Total Part Build Rating . | . . . . . Parts Repaired . | . . . . . Time . | . . . . . Parts Recycled . | . . . . . Recycled Matter . | . . . . . Retrieved Matter . | . . . . . Retrieved Components . | . . . . . Parts Scanalyzed . | . . . . . Part Schematics Acquired . | . . . . . Parts Damaged . | . . . . . Bothacking | -11 -10 -10 -9 -9 ------------ Run | Yrd Mat Min Mat Sto Used RIF Installer . | . . . . . Robots Hacked . | . . . . . Non-combat . | . . . . . Combat . | . . . . . Robot Hacks Applied . | . . . . . Relay Couplers Released . | . . . . . Fabnet Peak Effective % . | . . . . . Robots Rewired . | . . . . . Allies Hacked . | . . . . . Hacks Repelled . | . . . . . Allies | -11 -10 -10 -9 -9 -------- Run | Yrd Mat Min Mat Sto Total Allies . | . . . . . Largest Group . | . . . . . Highest-Rated Group . | . . . . . Highest-Rated Ally . | . . . . . Total Orders 2 | . . . . 2 ROAM 1 | . . . . 1 EXPLORE 1 | . . . . 1 Ally Attacks . | . . . . . Total Damage . | . . . . . Kills . | . . . . . Allies Corrupted . | . . . . . Allies Melted . | . . . . . Intel | -11 -10 -10 -9 -9 ------- Run | Yrd Mat Min Mat Sto Robot Analysis Total . | . . . . . Derelict Logs Recovered 2 | . . 2 . . Drone Launches 14 | . . . . 14 Drone Recoveries 2 | . . . . 2 Exploration | -11 -10 -10 -9 -9 ------------- Run | Yrd Mat Min Mat Sto Turns Passed 1517 | 169 107 860 214 167 Spaces Moved 787 | 98 84 370 131 104 Core 5 | 5 . . . . Treads . | . . . . . Legs 782 | 93 84 370 131 104 Wheels . | . . . . . Hover . | . . . . . Flight . | . . . . . Fastest Speed 50 | 50 120 120 120 120 Average Speed 119 | 116 120 120 120 120 Slowest Speed 120 | 120 120 120 120 120 Overloaded Moves . | . . . . . Propulsion Burnouts . | . . . . . Robots Hopped . | . . . . . Cave-ins Triggered . | . . . . . Exploration Rate (%) 27 | 4 26 64 11 30 Regions Visited 4 Branch Regions 2 Pre-discovered Areas 1 | . . 1 . . Known Exits Taken 1 | . . . 1 . Unknown Exits Taken 3 | 1 1 1 . . Scrap Searched . | . . . . . Spaces Dug . | . . . . . Terrain Destroyed 48 | . . 44 3 1 Melee . | . . . . . Projectile 4 | . . . 3 1 AOE 44 | . . 44 . . Terrain Rammed . | . . . . . Walls Destroyed . | . . . . . Machines Disabled . | . . . . . Actions | -11 -10 -10 -9 -9 --------- Run | Yrd Mat Min Mat Sto Total 1264 | 130 88 754 167 125 Wait 360 | . . 336 24 . Move 783 | 97 83 369 130 104 Hop . | . . . . . Pick Up 12 | 3 1 5 . 3 Fast Attach 17 | 5 . 5 6 1 Attach 4 | . 1 2 1 . Detach 3 | . . 1 1 1 Swap 3 | . . 2 1 . Drop 12 | . . 5 1 6 Fire 56 | 25 3 21 3 4 Melee . | . . . . . Ram . | . . . . . Kick 8 | . . 8 . . Crush . | . . . . . Escape Stasis . | . . . . . Rewire . | . . . . . Trap . | . . . . . Miscellaneous 6 | . . . . 6 Route ------- -11/Scrapyard -10/Materials -10/Mines -9/Materials (discovered 5 exits: Mat x2 / Min / *Sto x2) -9/Storage History --------- Turn | Location | Event 8 | -11/Scrapyard | Discovered new exit (range 15) 170 | -11/Scrapyard | Entered Materials 269 | -10/Materials | Discovered new exit (range 8) 277 | -10/Materials | Entered Mines 278 | -10/Mines | Assembled infested the area 310 | -10/Mines | Build established: Mutant 318 | -10/Mines | Learned 4 Materials zone layouts 786 | -10/Mines | Found a damaged Exp. Sensor Array with a note attached 789 | -10/Mines | Found Prototype Device 789 | -10/Mines | Identified Exp. Sensor Array 1118 | -10/Mines | Discovered new exit (range 11) 1137 | -10/Mines | Entered Materials 1137 | -9/Materials | Evolved 2 slots: Utility x2 1138 | -9/Materials | Identified exit to Mines 1138 | -9/Materials | Identified exit to Storage 1138 | -9/Materials | Identified exit to Materials 1337 | -9/Materials | Discovered exit to Storage (range 12) 1351 | -9/Materials | Entered Storage 1511 | -9/Storage | Lost 10 allies 1518 | -9/Storage | Self-destructed Last Messages --------------- 01439_ Critical hit (Burn: +37). 01440_ U-05 Engineer builds a Wall. 01441_ Drone destroyed. 01445_ Drone suffers critical hit (Burn). 01451_ G-34 Mercenary destroyed. 01451_ Drone destroyed. 01460_ Y-45 Defender destroyed. 01463_ Drone destroyed. 01464_ Overheating: Energy bleed (-23). 01465_ Drone destroyed. 01477_ Drone suffers critical hit (Burn). 01480_ Drone destroyed. 01486_ Mining Laser destroyed. 01488_ Drone Bay destroyed. 01491_ Critical hit (Burn: +37). 01492_ ALERT: Hostiles spotted, dispatching reinforcements to Terminal S005. 01498_ Critical hit (Burn: +37). 01501_ Mining Laser destroyed. [Achievement: Just Browsing] Map ----- +----------------------------------------------------+ | | | | | | | | | | | | | | | | | ?????????????????????????????????????? | | ?????????????????????????????????????? | | ????????????????????????????##???????? | | ??????????????????????????? ????????? | | ??????????????????????????? "????????? | | ######################+### "????????? | | # "????????? | | %% + "????????? | | % % XX Y # "????????? | | ### #########+########## # "????????? | | ###+##????? ???????#g#? ???????? | | = #??? """ "T?????# #? ??????? | | % ""%#?# """ ???# ##+####?????? | | % T" #?# """ #??# #??????#?? | | %"" ### #?# #???? #?? | | % ################?# #?? !!!#?? | | ##????# ###u o # !!!#?? | | #?????# g @ + !! #?? | | ####### ###### # X #?? | | +##### # #????# #? "T" #? | | % # x #????#x#??######? | | %%% + #????# #????????? | | # #????# #????????? | | ###### #????? ?????# #????????? | | ??????# ##??????????????# #????????? | | ??????? #???????????????# #????????? | | ???????? #???????????????# #????????? | | ???????? #???????????????# #????????? | | ????????? #????????????????X?????????? | | ??????????+???????????????? ?????????? | | ???????????????????????????x?????????? | | ??????????????????????????? ?????????? | | ??????????????????????????? ?????????? | | ???????????????????????????/?????????? | | ??????????????????????????? ?????????? | | ??????????????????????????? ?????????? | | ?????????????????????????????????????? | | ?????????????????????????????????????? | | ?????????????????????????????????????? | | ?????????????????????????????????????? | | ?????????????????????????????????????? | | ?????????????????????????????????????? | +----------------------------------------------------+ Best States ------------- Heat Dissipation 28 Energy Generation 14 Energy Capacity 250 Matter Stores 300 Matter Capacity 300 Sight Range 18 Robot Scan Range 20 Terrain Scan Range 16 Terrain Scan Density 10 Propulsion Shielding 33 Evasion (%) 55 Item Schematics ----------------- None Robot Schematics ------------------ None Fabricated ------------ Nothing Alien Tech Used ----------------- None Achievements -------------- Just Browsing Challenges ------------ None Game ------ Seed ColdDisruptionMount Manual? 0 Play Time 00:16:48 Cumulative 19.4 hours Start 2024.04.27 @ 20:03:43 End 2024.04.27 @ 20:18:30 Sessions 1 Manual Loads 0 Difficulty Rogue Special Mode None Game No. 28 Rogue 28 Adventurer 0 Explorer 0 Win Type - Total 0 Types 0/0/0/0/0/0/0/0/0 Lore% 22 Gallery% 25 Achievement% 20 Wizard Run 0 Options --------- Layout 1 ASCII 0 Keyboard 0 Movement Numpad Keybinds 0 Fullscreen 2 Font 24/Smallcaps Map View 50x35 Zoom Use 0% Tactical HUD 1 Map Filters NONE Filters NONE Steam 1 RUN: 5a3f41fd-bd47-488e-b84f-d597946cabe4